bitfinex/quotes_SOLUSD_20260109
["timestamp","ask_amount","ask_price","bid_price","bid_amount"]
[1767928839789,13.04,139.93,139.9,0.28432314]
[1767928839989,13.04,139.93,139.89,5.60431128]
[1767928840193,10.90619108,139.92,139.9,5.60431128]
[1767928840398,10.90619108,139.92,139.89,5.60431128]
[1767928840616,10.90619108,139.92,139.9,0.28432314]
[1767928841406,10.90619108,139.92,139.9,0.14216157]
[1767928842504,10.90619108,139.92,139.88,5.60431128]
[1767928842505,10.90619108,139.92,139.88,5.88863442]
[1767928842888,0.70427576,139.93,139.88,5.74647285]
[1767928843089,0.70427576,139.95,139.9,0.28432314]
[1767928843302,13.04,139.94,139.9,0.28432314]
[1767928843905,11.12245804,139.93,139.92,5.74647285]
[1767928844105,11.12245804,139.93,139.92,0.28432314]
[1767928844290,11.03705711,139.93,139.92,0.28432314]
[1767928846293,20.85240919,139.93,139.89,6.6801107]
[1767928846499,20.85240919,139.93,139.88,9.11107632]
[1767928847312,9.81535208,139.91,139.86,6.6801107]
[1767928847519,9.81535208,139.91,139.88,6.6801107]
[1767928847707,9.81535208,139.9,139.85,9.11107632]
[1767928847915,22.15107632,139.89,139.84,9.11107632]
[1767928848215,22.82535209,139.89,139.84,9.11107632]
[1767928848414,22.7953521,139.89,139.84,6.6801107]
[1767928848605,0.70427576,139.88,139.83,9.11107632]
[1767928848807,9.81535208,139.88,139.83,9.11107632]
[1767928849016,22.09107634,139.89,139.84,9.11107632]
[1767928849720,12.98000002,139.89,139.85,0.14216157]
[1767928849896,12.98000002,139.89,139.85,0.28432314]
[1767928850419,22.7953521,139.89,139.85,0.28432314]
[1767928856918,13.04,139.88,139.86,0.28432314]
[1767928857119,13.04,139.88,139.85,9.11107632]
[1767928857120,13.01000001,139.88,139.85,0.28432314]
[1767928857329,13.71427577,139.88,139.85,0.28432314]
[1767928857514,0.70427576,139.87,139.85,0.28432314]
[1767928857836,9.11107632,139.87,139.81,9.14107631]
[1767928858005,9.11107632,139.87,139.82,0.14216157]
[1767928858430,9.11107632,139.87,139.82,0.31432313]
[1767928858614,3.43899038,139.87,139.82,0.31432313]
[1767928859711,0.70427576,139.86,139.82,0.31432313]
[1767928859911,0.70427576,139.82,139.77,3.43899038]
[1767928860110,3.43899038,139.83,139.77,4.11010864]
[1767928860315,13.04,139.82,139.77,4.11010864]
[1767928860510,12.30387968,139.82,139.77,4.11010864]
[1767928860720,8.96256816,139.82,139.77,4.11010864]
[1767928860899,3.43899038,139.85,139.79,4.11010864]
[1767928861103,13.04,139.84,139.79,4.11010864]
[1767928861932,13.04,139.84,139.8,0.28432314]
[1767928862224,13.74427576,139.84,139.8,0.28432314]
[1767928862615,0.71064612,139.83,139.8,0.28432314]
[1767928862925,16.47899038,139.84,139.78,3.43899038]
[1767928862926,13.04,139.84,139.78,0.70736635]
[1767928863112,3.43899038,139.83,139.78,0.70736635]
[1767928863510,3.43899038,139.83,139.78,0.99168949]
[1767928863824,3.43899038,139.83,139.78,0.84952792]
[1767928864125,3.43899038,139.83,139.78,0.99168949]
[1767928864429,3.43899038,139.83,139.78,4.43067987]
[1767928864627,3.43899038,139.9,139.83,0.70736635]
[1767928864819,13.51275597,139.89,139.85,4.14635673]
[1767928865019,13.00842197,139.88,139.87,0.28432314]
[1767928865229,12.95684394,139.88,139.87,0.28432314]
[1767928866127,12.95684394,139.88,139.87,3.72331352]
[1767928866330,12.95684394,139.88,139.87,0.28432314]
[1767928867634,12.95684394,139.88,139.86,0.70736635]
[1767928867816,12.95684394,139.88,139.87,0.28432314]
[1767928868721,13.06,139.88,139.87,0.28432314]
[1767928870618,0.68188195,139.87,139.79,0.65817122]
[1767928870836,9.11801174,139.83,139.79,0.65817122]
[1767928871028,22.17801174,139.82,139.79,0.65817122]
[1767928871336,13.06,139.81,139.79,0.65817122]
[1767928871636,12.25045507,139.81,139.77,0.65817122]
[1767928871827,12.25045507,139.81,139.78,0.65817122]
[1767928872128,21.36846681,139.81,139.78,0.65817122]
[1767928872349,21.36846681,139.81,139.77,0.80033279]
[1767928872726,21.36846681,139.81,139.77,0.65817122]
[1767928873638,9.11801174,139.8,139.77,0.65817122]
[1767928875446,9.79989369,139.83,139.79,0.65817122]
[1767928875953,22.85989369,139.82,139.77,9.77618296]
[1767928876115,9.11801174,139.81,139.77,0.65817122]
[1767928876446,13.06,139.82,139.78,0.65817122]
[1767928877017,13.06,139.82,139.78,9.77618296]
[1767928877420,13.06,139.81,139.79,0.65817122]
[1767928879737,12.58791751,139.8,139.79,0.65817122]
[1767928879943,13.06,139.8,139.79,7.81175874]
[1767928880145,13.06,139.8,139.79,7.15358752]
[1767928881146,13.06,139.81,139.79,7.15358752]
[1767928882253,13.06,139.81,139.79,7.81175874]
[1767928884757,9.79989369,139.83,139.79,7.81175874]
[1767928885131,7.14995635,139.87,139.8,0.65817122]
[1767928885436,9.11801174,139.84,139.8,0.65817122]
[1767928885677,9.79989369,139.84,139.8,0.65817122]
[1767928885954,0.68188195,139.84,139.8,9.77618296]
[1767928887460,0.68188195,139.84,139.8,16.92883483]
[1767928888636,0.68188195,139.84,139.8,11.25113099]
[1767928891758,0.68188195,139.84,139.81,0.65817122]
[1767928891960,0.68188195,139.84,139.8,10.59295977]
[1767928892160,0.68188195,139.84,139.8,11.25113099]
[1767928893256,0.68188195,139.84,139.81,7.15251423]
[1767928896648,13.06,139.83,139.81,7.15251423]
[1767928896961,13.06,139.83,139.81,7.85927291]
[1767928897371,4.13745069,139.87,139.83,0.70675868]
[1767928897566,13.06,139.86,139.83,0.70675868]
[1767928897861,4.13745069,139.84,139.8,0.70675868]
[1767928898062,0.69714279,139.83,139.8,0.70675868]
[1767928898445,17.19745069,139.89,139.83,0.70675868]
[1767928898643,3.4403079,139.93,139.84,3.4403079]
[1767928898644,0.69714279,139.87,139.84,3.4403079]
[1767928898838,0.69714279,139.86,139.84,3.4403079]
[1767928899577,13.06,139.87,139.84,11.29776271]
[1767928899861,13.75714279,139.87,139.84,7.15069613]
[1767928900059,0.69714279,139.86,139.81,18.8724923]
[1767928900262,0.69714279,139.86,139.81,22.3128002]
[1767928900843,0.69714279,139.85,139.82,7.15166522]
[1767928901871,13.06,139.84,139.82,7.15166522]
[1767928903954,0.69714279,139.85,139.82,7.15166522]
[1767928904194,13.06,139.84,139.82,7.15166522]
[1767928907980,0.69714279,139.85,139.82,7.15166522]
[1767928912066,0.69714279,139.85,139.82,9.35292469]
[1767928914067,7.14864971,139.89,139.82,9.35292469]
[1767928914068,0.69714279,139.88,139.83,2.90801815]
[1767928914295,13.75714279,139.88,139.84,0.70675868]
[1767928915164,0.69714279,139.87,139.84,7.85761242]
[1767928919273,0.69714279,139.85,139.82,7.15171419]
[1767928919487,2.20125947,139.86,139.82,7.15171419]
[1767928920496,2.20125947,139.85,139.81,7.85912915]
[1767928921490,2.89840226,139.85,139.81,7.85912915]
[1767928922995,20.2095175,139.87,139.8,82.18379188]
[1767928922996,2.31127865,139.84,139.8,7.85181613]
[1767928925590,7.15005458,139.86,139.79,7.85244472]
[1767928925591,0.11795513,139.82,139.79,7.85244472]
[1767928925783,0.08795514,139.82,139.79,7.85244472]
[1767928927113,0.08795514,139.82,139.79,0.69885847]
[1767928927615,2.20125947,139.82,139.78,7.15392823]
[1767928927817,0.67827329,139.81,139.77,7.84044763]
[1767928928115,2.87953276,139.81,139.77,7.84044763]
[1767928929214,0.67827329,139.81,139.77,7.84044763]
[1767928931615,15.93953276,139.83,139.78,0.68602806]
[1767928931821,0.67827329,139.84,139.8,0.68602806]
[1767928932904,0.67827329,139.84,139.81,7.15256419]
[1767928933223,2.87953276,139.84,139.81,7.15256419]
[1767928933825,2.87953276,139.84,139.8,0.68602806]
[1767928933826,2.87953276,139.84,139.8,7.83893968]
[1767928934824,2.30025947,139.83,139.8,0.68602806]
[1767928935118,2.87374002,139.82,139.79,7.15353766]
[1767928935519,0.10473481,139.81,139.78,7.84004058]
[1767928935732,0.07473482,139.81,139.78,7.15401252]
[1767928936023,2.27599429,139.81,139.77,69.94048558]
[1767928936234,2.27599429,139.81,139.77,7.84048558]
[1767928936600,0.07473482,139.81,139.77,7.84048558]
[1767928936919,2.20125947,139.81,139.77,7.84048558]
[1767928937134,2.20125947,139.78,139.76,0.2]
[1767928937439,2.14125949,139.78,139.76,0.2]
[1767928937734,2.78953279,139.78,139.76,0.2]
[1767928937937,2.08403693,139.78,139.76,0.1]
[1767928938108,2.08403693,139.78,139.74,7.15598537]
[1767928938497,2.33231023,139.78,139.74,7.15598537]
[1767928939430,0.099,139.77,139.74,7.15598537]
[1767928940321,2.30025947,139.77,139.73,0.68602806]
[1767928940626,2.30025947,139.77,139.73,7.84268684]
[1767928941221,2.20125947,139.77,139.74,0.68602806]
[1767928941720,2.20125947,139.77,139.73,7.84268684]
[1767928942138,2.30025947,139.77,139.73,0.68602806]
[1767928943345,2.30025947,139.77,139.73,7.84254659]
[1767928943546,2.30025947,139.77,139.73,0.68602806]
[1767928944841,0.099,139.77,139.73,0.68602806]
[1767928945146,2.30025947,139.77,139.73,0.68602806]
[1767928945564,2.20125947,139.75,139.72,0.68602806]
[1767928945788,2.20125947,139.73,139.71,0.2]
[1767928946436,2.446577,139.74,139.71,0.2]
[1767928947845,2.446577,139.74,139.71,7.35766419]
[1767928948055,2.20125947,139.75,139.72,0.68602806]
[1767928949577,2.20125947,139.76,139.73,0.68602806]
[1767928950251,2.20125947,139.75,139.73,0.68602806]
[1767928950849,0.10047781,139.75,139.71,7.54334668]
[1767928951057,2.20125947,139.74,139.71,7.54334668]
[1767928954949,2.20125947,139.74,139.72,0.66393544]
[1767928956348,2.20125947,139.74,139.71,0.66393544]
[1767928956554,2.20125947,139.75,139.72,0.66393544]
[1767928958709,0.099,139.76,139.72,0.66393544]
[1767928959004,2.20125947,139.75,139.72,0.66393544]
[1767928961787,2.20125947,139.74,139.72,0.66393544]
[1767928963090,0.2482733,139.78,139.72,7.15712858]
[1767928963297,2.20125947,139.81,139.75,2.20125947]
[1767928963506,2.90837344,139.81,139.75,2.20125947]
[1767928963804,0.70711397,139.81,139.77,0.4767267]
[1767928963965,2.90837344,139.82,139.77,0.4767267]
[1767928964790,2.90837344,139.8,139.75,0.4767267]
[1767928964994,2.90837344,139.79,139.75,0.4767267]
[1767928965295,2.90837344,139.79,139.75,7.6322085]
[1767928966177,2.90837344,139.79,139.75,9.83346797]
[1767928966178,0.70711397,139.79,139.75,9.83346797]
[1767928966381,2.90837344,139.81,139.76,0.4767267]
[1767928966882,2.90837344,139.81,139.77,7.15447653]
[1767928968002,0.70711397,139.8,139.76,7.63179595]
[1767928978506,0.70711397,139.8,139.76,7.15506925]
[1767928978711,0.70711397,139.8,139.76,7.63179595]
[1767928979219,0.70711397,139.8,139.76,7.15506925]
[1767928979928,0.70711397,139.79,139.76,7.15506925]
[1767928980309,0.70711397,139.77,139.74,7.15612451]
[1767928980503,0.67711398,139.77,139.73,7.15654274]
[1767928980718,3.44225423,139.77,139.73,7.15654274]
[1767928981310,3.44225423,139.78,139.72,28.49235442]
[1767928981504,20.21357248,139.8,139.73,3.44225423]
[1767928981713,3.44225423,139.79,139.73,3.44225423]
[1767928982518,0.70711397,139.78,139.73,3.44225423]
[1767928983127,0.70711397,139.78,139.73,3.94898092]
[1767928983834,0.72091374,139.73,139.67,4.37354498]
[1767928984029,13.06,139.75,139.67,3.71536073]
[1767928984339,3.44225423,139.68,139.65,0.2]
[1767928984541,3.44225423,139.67,139.65,0.17764043]
[1767928984906,3.44225423,139.66,139.64,0.2]
[1767928985127,3.44225423,139.65,139.62,0.2]
[1767928985431,3.44225423,139.64,139.62,0.2]
[1767928987035,3.44225423,139.63,139.62,0.2]
[1767928988837,3.44225423,139.63,139.6,8.02148151]
[1767928988838,10.60410174,139.63,139.6,0.2]
[1767928989140,3.44225423,139.61,139.57,0.90798135]
[1767928989344,3.44225423,139.6,139.57,0.90798135]
[1767928990738,0.89802682,139.59,139.57,0.2]
[1767928990947,3.44225423,139.59,139.57,0.2]
[1767928993647,3.44225423,139.61,139.57,7.36463731]
[1767928993857,25.06450573,139.64,139.54,0.2]
[1767928994141,3.44225423,139.58,139.54,0.90798135]
[1767928994342,13.08,139.61,139.55,0.70798135]
[1767928994545,3.44225423,139.59,139.55,7.87365759]
[1767928994733,3.44225423,139.58,139.54,0.2]
[1767928994923,7.16332378,139.6,139.54,0.2]
[1767928995131,3.44225423,139.6,139.55,0.70798135]
[1767928996136,13.08,139.61,139.55,0.70798135]
[1767928996450,16.52225423,139.62,139.57,0.70798135]
[1767928996744,16.52225423,139.62,139.55,7.16554823]
[1767928996745,3.44225423,139.6,139.55,7.87352958]
[1767928996950,3.44225423,139.6,139.56,0.70798135]
[1767928997243,3.44225423,139.62,139.57,0.70798135]
[1767928997621,3.44225423,139.62,139.58,0.70798135]
[1767928998422,16.52225423,139.63,139.58,0.70798135]
[1767928998622,16.52225423,139.63,139.59,0.70798135]
[1767928998623,13.08,139.63,139.59,0.70798135]
[1767928998949,13.08,139.63,139.6,0.70798135]
[1767928999641,16.52225423,139.63,139.58,7.87217995]
[1767928999845,16.52225423,139.63,139.58,11.31443418]
[1767929001132,3.44225423,139.62,139.57,10.60704586]
[1767929001344,3.44225423,139.62,139.57,7.87277298]
[1767929002734,3.44225423,139.6,139.55,0.70798135]
[1767929002933,3.44225423,139.59,139.55,0.70798135]
[1767929003341,3.44225423,139.6,139.55,11.31601524]
[1767929008552,3.44225423,139.6,139.56,0.70798135]
[1767929008944,3.44225423,139.61,139.57,0.70798135]
[1767929009335,7.44671757,139.62,139.57,0.70798135]
[1767929009539,3.44225423,139.61,139.57,0.70798135]
[1767929009745,3.44225423,139.61,139.56,0.70798135]
[1767929010033,7.16239443,139.62,139.57,0.70798135]
[1767929010248,30.98446179,139.63,139.58,0.70798135]
[1767929010249,16.52225423,139.63,139.58,0.70798135]
[1767929010640,16.52225423,139.63,139.58,7.87229355]
[1767929011061,3.44225423,139.61,139.56,4.15023558]
[1767929011244,3.44225423,139.61,139.57,0.70798135]
[1767929011643,3.44225423,139.62,139.57,0.70798135]
[1767929013530,10.60465037,139.62,139.57,0.70798135]
[1767929026957,3.44225423,139.61,139.57,0.70798135]
[1767929027653,10.60522965,139.61,139.57,0.70798135]
[1767929028548,9.37240221,139.61,139.57,0.70798135]
[1767929037802,9.37172445,139.62,139.57,0.70798135]
[1767929037999,4.82977919,139.61,139.57,0.70798135]
[1767929038800,7.03920598,139.61,139.57,0.70798135]
[1767929043704,14.20239948,139.61,139.57,0.70798135]
[1767929043910,9.37262029,139.61,139.57,0.70798135]
[1767929044107,2.20942679,139.58,139.54,0.90667573]
[1767929044610,4.83210314,139.59,139.54,0.2]
[1767929044611,2.20942679,139.57,139.54,0.2]
[1767929046587,9.37435677,139.57,139.54,0.2]
[1767929047011,2.20942679,139.55,139.53,0.7244158]
[1767929047192,15.28942679,139.56,139.53,0.7244158]
[1767929047391,22.45435677,139.57,139.53,0.7244158]
[1767929049912,2.20942679,139.56,139.53,0.7244158]
[1767929050114,9.37493367,139.56,139.52,0.2]
[1767929050289,2.20942679,139.55,139.52,0.2]
[1767929050488,7.16550688,139.56,139.52,0.2]
[1767929050489,2.20942679,139.53,139.52,0.2]
[1767929050687,2.20942679,139.53,139.51,0.2]
[1767929052214,9.3763906,139.53,139.51,0.2]
[1767929053992,2.20942679,139.52,139.51,0.2]
[1767929055814,9.3763906,139.53,139.51,0.2]
[1767929056019,9.3763906,139.53,139.49,14.01537191]
[1767929056020,2.20942679,139.52,139.49,14.01537191]
[1767929056198,2.20942679,139.51,139.49,14.01537191]
[1767929056399,2.20942679,139.52,139.49,14.73978771]
[1767929056593,2.20942679,139.52,139.5,0.7244158]
[1767929057401,9.37690703,139.52,139.49,14.73978771]
[1767929057605,2.20942679,139.51,139.49,14.01537191]
[1767929059012,2.20942679,139.5,139.49,14.01537191]
[1767929059398,2.20942679,139.5,139.48,0.2]
[1767929059700,2.20942679,139.49,139.48,0.2]
[1767929061023,2.20942679,139.5,139.48,0.2]
[1767929061220,20.24809796,139.51,139.48,0.2]
[1767929061412,22.45752475,139.51,139.48,0.2]
[1767929063322,2.20942679,139.53,139.49,0.7244158]
[1767929063634,7.16696902,139.53,139.5,0.7244158]
[1767929063797,20.24654761,139.54,139.5,0.7244158]
[1767929064701,13.08,139.54,139.5,0.7244158]
[1767929065624,15.28942679,139.54,139.5,0.7244158]
[1767929067804,2.20942679,139.54,139.5,0.7244158]
[1767929073929,7.1659387,139.55,139.5,0.7244158]
[1767929074130,9.37536549,139.55,139.5,0.7244158]
[1767929076211,2.20942679,139.54,139.5,0.7244158]
[1767929079933,9.37594306,139.54,139.5,0.7244158]
[1767929080716,7.16651627,139.54,139.5,0.7244158]
[1767929081818,9.37594306,139.54,139.5,0.7244158]
[1767929082025,2.20942679,139.52,139.49,0.67311361]
[1767929083017,27.2919528,139.54,139.49,0.67311361]
[1767929083922,25.08252601,139.54,139.49,0.67311361]
[1767929084329,20.12543653,139.54,139.49,0.67311361]
[1767929086416,27.29184042,139.54,139.49,0.67311361]
[1767929087832,9.37583068,139.54,139.49,0.67311361]
[1767929088232,7.16640389,139.54,139.49,0.67311361]
[1767929088422,7.16589036,139.55,139.5,0.67311361]
[1767929088817,9.37531715,139.55,139.5,0.67311361]
[1767929090520,10.62111222,139.55,139.5,0.67311361]
[1767929093539,3.45522186,139.54,139.5,0.67311361]
[1767929094046,10.62111222,139.55,139.5,0.67311361]
[1767929094214,10.62111222,139.55,139.51,0.67311361]
[1767929095646,3.45522186,139.52,139.48,0.87311361]
[1767929095959,3.45522186,139.5,139.48,0.87311361]
[1767929096733,3.45522186,139.51,139.48,0.87311361]
[1767929098960,10.62308423,139.52,139.48,0.87311361]
[1767929100243,20.24706007,139.53,139.49,0.67311361]
[1767929100824,23.70228193,139.53,139.49,0.67311361]
[1767929101335,23.70228193,139.53,139.48,0.87311361]
[1767929101336,20.24706007,139.53,139.48,0.87311361]
[1767929101543,3.45522186,139.51,139.48,0.87311361]
[1767929102125,3.45522186,139.5,139.48,0.87311361]
[1767929102517,7.16827673,139.51,139.48,0.87311361]
[1767929102719,10.62349859,139.51,139.48,0.87311361]
[1767929103148,3.45522186,139.51,139.48,0.88025167]
[1767929103459,10.62271662,139.52,139.49,0.68025167]
[1767929106845,10.623308,139.51,139.48,0.88025167]
[1767929107450,7.16808614,139.51,139.48,0.88025167]
[1767929107652,7.16808614,139.51,139.49,0.71244242]
[1767929107946,10.623308,139.51,139.48,0.2]
[1767929108140,10.623308,139.51,139.48,0.91244242]
[1767929111849,23.70282056,139.52,139.48,0.91244242]
[1767929113648,23.70282056,139.52,139.49,0.71244242]
[1767929114252,13.08,139.52,139.49,0.71244242]
[1767929115558,20.24751974,139.52,139.49,0.71244242]
[1767929115745,23.7027416,139.52,139.49,0.71244242]
[1767929116964,20.24751974,139.52,139.49,0.71244242]
[1767929117144,3.45522186,139.51,139.49,0.71244242]
[1767929117649,23.7027416,139.52,139.49,0.71244242]
[1767929118656,23.7027416,139.52,139.49,0.65244242]
[1767929119552,10.68332983,139.51,139.48,0.2]
[1767929119737,3.45522186,139.49,139.44,0.2]
[1767929120659,3.45522186,139.49,139.45,0.71244242]
[1767929120861,10.62470028,139.49,139.45,0.71244242]
[1767929121043,3.45522186,139.48,139.45,0.71244242]
[1767929125466,13.08,139.49,139.45,0.71244242]
[1767929125657,13.08,139.49,139.46,0.71244242]
[1767929126358,23.70461185,139.49,139.46,0.71244242]
[1767929126966,0.06,139.48,139.44,0.91244242]
[1767929127852,23.76461185,139.49,139.45,0.71244242]
[1767929128665,3.51522186,139.48,139.44,0.91244242]
[1767929129465,0.06,139.48,139.44,0.91244242]
[1767929129665,10.68519802,139.48,139.44,0.91244242]
[1767929130651,7.22997616,139.48,139.44,0.91244242]
[1767929130847,0.06,139.47,139.44,0.2]
[1767929133356,7.22997616,139.48,139.44,0.89227523]
[1767929135068,7.22997616,139.48,139.44,0.2]
[1767929135069,0.06,139.47,139.44,0.2]
[1767929136452,0.06,139.47,139.44,0.89227523]
[1767929136760,10.68519802,139.48,139.45,0.69227523]
[1767929137670,10.62519802,139.48,139.45,0.69227523]
[1767929137968,7.16997616,139.48,139.45,0.69227523]
[1767929146472,7.22997616,139.48,139.45,0.69227523]
[1767929147372,7.16997616,139.48,139.45,0.69227523]
[1767929147775,7.22997616,139.48,139.45,0.69227523]
[1767929148298,7.16997616,139.48,139.45,0.69227523]
[1767929150781,7.86492452,139.48,139.43,9.01954716]
[1767929151471,7.16997616,139.48,139.43,5.5643253]
[1767929151678,7.86492452,139.48,139.43,9.01954716]
[1767929152481,7.86492452,139.48,139.43,7.77758731]
[1767929152776,7.86492452,139.48,139.44,0.69227523]
[1767929153565,0.1557536,139.47,139.44,0.69227523]
[1767929155583,9.53899177,139.48,139.44,0.69227523]
[1767929155785,7.32572976,139.48,139.44,0.69227523]
[1767929159090,0.68955641,139.47,139.43,2.21326201]
[1767929159398,0.68955641,139.47,139.43,2.90553724]
[1767929159571,0.68955641,139.47,139.43,0.69227523]
[1767929159974,0.16109163,139.46,139.43,0.69227523]
[1767929162584,7.83854263,139.47,139.43,0.69227523]
[1767929169403,0.18199331,139.46,139.43,0.69227523]
[1767929169605,7.85447707,139.47,139.43,0.69227523]
[1767929171692,0.68437804,139.47,139.44,0.69634065]
[1767929173513,0.16621821,139.46,139.43,0.69634065]
[1767929173805,0.13621822,139.46,139.43,0.69634065]
[1767929176388,7.85470254,139.47,139.43,0.69634065]
[1767929177007,0.13651822,139.46,139.43,0.69634065]
[1767929178303,13.23651822,139.46,139.43,0.69634065]
[1767929179109,13.20651823,139.46,139.43,0.69634065]
[1767929181205,0.67889944,139.45,139.42,0.89634065]
[1767929182487,0.67889944,139.45,139.42,0.2]
[1767929185811,2.89216145,139.45,139.42,0.2]
[1767929186029,0.11224205,139.44,139.42,0.2]
[1767929186316,2.89764005,139.45,139.42,0.89634065]
[1767929186515,0.68437804,139.45,139.42,0.89634065]
[1767929188515,0.68437804,139.45,139.42,8.0689044]
[1767929188710,0.10681823,139.44,139.42,0.2]
[1767929188914,0.28432314,139.45,139.42,0.2]
[1767929188915,0.96870118,139.45,139.42,0.2]
[1767929189212,0.10681823,139.44,139.42,0.2]
[1767929190809,0.10681823,139.44,139.41,7.26932495]
[1767929193215,13.79227525,139.45,139.42,0.6820871]
[1767929193415,0.69227525,139.45,139.42,0.6820871]
[1767929193600,13.79227525,139.45,139.42,0.6820871]
[1767929194321,13.1,139.45,139.4,0.6820871]
[1767929194515,15.31326201,139.45,139.41,0.6820871]
[1767929195017,13.79227525,139.45,139.41,7.85466828]
[1767929197302,13.79227525,139.45,139.42,0.6820871]
[1767929197818,13.79227525,139.45,139.41,7.17258118]
[1767929197819,0.099,139.44,139.41,0.6820871]
[1767929198023,0.68634249,139.43,139.41,0.6820871]
[1767929198218,0.69227525,139.44,139.41,0.6820871]
[1767929198819,16.00553726,139.45,139.41,0.6820871]
[1767929199428,2.31813544,139.42,139.39,7.85603689]
[1767929199606,2.18326202,139.41,139.39,7.85603689]
[1767929200519,2.18326202,139.41,139.39,7.17394979]
[1767929201031,2.18326202,139.41,139.39,7.85603689]
[1767929202422,0.66227526,139.42,139.39,7.85603689]
[1767929202614,0.099,139.4,139.39,7.17394979]
[1767929202918,2.21326201,139.41,139.39,7.85603689]
[1767929203517,0.099,139.42,139.39,7.85603689]
[1767929203710,2.21326201,139.41,139.39,7.85603689]
[1767929204231,2.21326201,139.41,139.39,0.6820871]
[1767929204730,0.6566425,139.4,139.38,7.37449104]
[1767929205502,0.46227526,139.38,139.35,6.8801107]
[1767929205734,2.21326201,139.38,139.36,0.6820871]
[1767929205918,2.21326201,139.38,139.37,0.6820871]
[1767929206224,2.21326201,139.39,139.37,0.6820871]
[1767929208834,2.21326201,139.4,139.37,0.6820871]
[1767929210721,2.21326201,139.39,139.37,0.6820871]
[1767929212635,3.46290333,139.39,139.37,0.6820871]
[1767929213318,3.46290333,139.38,139.35,0.8820871]
[1767929213728,3.46290333,139.38,139.36,0.6820871]
[1767929216033,3.46290333,139.37,139.36,0.6820871]
[1767929216327,6.92580666,139.37,139.34,0.2]
[1767929216523,3.46290333,139.35,139.32,0.6820871]
[1767929216839,3.46290333,139.33,139.32,0.6820871]
[1767929217213,13.1,139.35,139.32,0.6820871]
[1767929217214,3.46290333,139.34,139.32,0.6820871]
[1767929217416,13.1,139.35,139.32,0.6820871]
[1767929217417,3.46290333,139.33,139.32,0.6820871]
[1767929217921,3.46290333,139.34,139.32,0.6820871]
[1767929219541,3.46290333,139.33,139.31,1.3142584]
[1767929219843,3.46290333,139.32,139.31,0.6321713]
[1767929220018,7.17676579,139.34,139.31,0.6321713]
[1767929220224,3.46290333,139.32,139.31,0.6321713]
[1767929220822,3.46290333,139.32,139.3,0.2]
[1767929221441,3.46290333,139.32,139.3,0.8820871]
[1767929222131,3.46290333,139.31,139.3,0.8820871]
[1767929222521,7.17725165,139.33,139.31,0.71512847]
[1767929222522,3.46290333,139.33,139.31,0.71512847]
[1767929222942,3.46290333,139.32,139.3,0.2]
[1767929223435,3.46290333,139.32,139.3,0.91512847]
[1767929223743,3.46290333,139.31,139.3,0.2]
[1767929223945,3.46290333,139.32,139.3,0.2]
[1767929224336,3.46290333,139.31,139.3,0.2]
[1767929224641,3.46290333,139.31,139.3,0.91512847]
[1767929224823,3.46290333,139.32,139.3,0.91512847]
[1767929225726,3.46290333,139.31,139.3,0.2]
[1767929226326,3.46290333,139.31,139.29,15.14461281]
[1767929227139,3.46290333,139.3,139.28,0.2]
[1767929227346,3.46290333,139.29,139.28,0.2]
[1767929227548,0.12445848,139.28,139.22,0.2]
[1767929227847,0.68376329,139.27,139.22,0.2]
[1767929228352,3.46290333,139.25,139.22,0.2]
[1767929228539,3.46290333,139.24,139.22,0.2]
[1767929229049,3.46290333,139.25,139.22,0.2]
[1767929229346,3.46290333,139.25,139.23,0.70276077]
[1767929229951,3.46290333,139.25,139.22,0.90276077]
[1767929230138,3.46290333,139.25,139.22,0.2]
[1767929230331,3.46290333,139.25,139.23,0.70276077]
[1767929230732,3.46290333,139.25,139.22,0.2]
[1767929230937,0.67822618,139.24,139.22,0.2]
[1767929231148,3.46290333,139.25,139.23,0.70276077]
[1767929231535,7.30548264,139.26,139.23,0.70276077]
[1767929231732,3.46290333,139.25,139.23,0.70276077]
[1767929234953,10.76838597,139.26,139.23,0.70276077]
[1767929235149,0.68376329,139.25,139.22,0.2]
[1767929235326,4.14666662,139.25,139.22,0.90276077]
[1767929235731,3.46290333,139.25,139.22,0.90276077]
[1767929237053,3.46290333,139.25,139.23,0.70276077]
[1767929237850,10.64432478,139.25,139.23,0.70276077]
[1767929238238,4.15231616,139.24,139.2,0.70276077]
[1767929238441,25.13474281,139.25,139.17,0.70276077]
[1767929238442,3.46290333,139.21,139.17,0.70276077]
[1767929239054,3.46290333,139.22,139.17,0.70276077]
[1767929239254,20.28282767,139.23,139.18,0.70276077]
[1767929239456,23.745731,139.23,139.19,0.70276077]
[1767929239836,10.645731,139.23,139.19,0.70276077]
[1767929241456,3.46290333,139.22,139.19,0.70276077]
[1767929241849,3.46290333,139.21,139.19,0.70276077]
[1767929242161,3.46290333,139.22,139.19,0.70276077]
[1767929242544,10.64606915,139.22,139.19,0.70276077]
[1767929245369,3.59295485,139.21,139.16,0.70276077]